bitfinex-derivatives/quotes_SOLF0:USTF0_20240927
["timestamp","ask_amount","ask_price","bid_price","bid_amount"]
[1727410617139,3.1925,156.59,156.58,9.83]
[1727410617638,3.1923,156.6,156.58,9.83]
[1727410618139,9.83,156.63,156.58,9.83]
[1727410618140,3.1925,156.59,156.58,9.83]
[1727410618533,3.1925,156.59,156.57,9.83]
[1727410618934,3.1927,156.58,156.57,9.83]
[1727410619539,9.83,156.61,156.52,3.1938]
[1727410619742,9.83,156.59,156.52,3.1938]
[1727410619942,0.97877596,156.58,156.54,9.83]
[1727410620135,3.1933,156.56,156.54,9.83]
[1727410620339,9.83,156.59,156.55,9.83]
[1727410620536,5.78656169,156.65,156.55,9.83]
[1727410620537,0.97879027,156.58,156.55,9.83]
[1727410620842,9.83,156.61,156.56,9.83]
[1727410621040,0.97879861,156.6,156.56,9.83]
[1727410621433,0.97879861,156.59,156.56,9.83]
[1727410621635,9.83,156.62,156.56,9.83]
[1727410621839,3.1925,156.59,156.56,9.83]
[1727410622842,3.1924,156.6,156.56,9.83]
[1727410623047,0.978709,156.59,156.58,9.83]
[1727410623242,9.83,156.64,156.58,9.83]
[1727410623441,0.97857828,156.63,156.59,9.83]
[1727410623944,0.97861062,156.62,156.58,9.83]
[1727410624143,0.97860349,156.62,156.58,9.83]
[1727410624436,3.1922,156.61,156.57,9.83]
[1727410624845,0.97860037,156.6,156.57,9.83]
[1727410625044,0.97860034,156.6,156.57,9.83]
[1727410625447,3.1924,156.6,156.57,9.83]
[1727410626342,3.1926,156.59,156.57,9.83]
[1727410626538,9.83,156.62,156.55,3.1932]
[1727410626738,0.97869282,156.61,156.56,9.83]
[1727410627135,9.83,156.6,156.56,9.83]
[1727410627339,0.97869327,156.59,156.56,9.83]
[1727410628047,0.97869327,156.59,156.54,9.83]
[1727410628345,3.1931,156.57,156.54,9.83]
[1727410628741,9.83,156.6,156.55,9.83]
[1727410629044,0.97870043,156.59,156.55,9.83]
[1727410629245,9.83,156.6,156.55,9.83]
[1727410629446,0.97870142,156.59,156.55,9.83]
[1727410629645,0.97870142,156.59,156.49,76.11199056]
[1727410629846,0.97870142,156.59,156.55,9.83]
[1727410630247,4.17157527,156.58,156.55,9.83]
[1727410630445,3.1928,156.58,156.55,9.83]
[1727410630648,3.1926,156.59,156.55,13.0232]
[1727410630848,3.1926,156.59,156.56,9.83]
[1727410631340,9.83,156.6,156.56,9.83]
[1727410631547,0.97874556,156.59,156.56,9.83]
[1727410632551,4.17134556,156.59,156.56,9.83]
[1727410632851,9.83,156.59,156.55,9.83]
[1727410633047,0.97875348,156.58,156.55,9.83]
[1727410633346,0.97881579,156.57,156.52,9.83]
[1727410634450,9.83,156.56,156.47,2.5685]
[1727410634650,9.83,156.54,156.5,9.83]
[1727410635151,3.1938,156.53,156.5,13.0243]
[1727410635649,3.194,156.52,156.5,9.83]
[1727410636951,3.194,156.52,156.51,9.83]
[1727410637452,9.83,156.54,156.47,4.5036]
[1727410637652,3.18890653,156.56,156.49,9.83]
[1727410637950,3.1943,156.51,156.49,9.83]
[1727410639755,3.1943,156.51,156.49,13.0246]
[1727410640054,3.1943,156.51,156.49,9.83]
[1727410641457,3.1943,156.51,156.49,13.0246]
[1727410645352,3.1943,156.51,156.49,3.1946]
[1727410645561,3.1943,156.51,156.49,13.0246]
[1727410645761,9.83,156.53,156.46,3.195]
[1727410646057,9.83,156.53,156.47,9.83]
[1727410646262,3.1945,156.5,156.48,9.83]
[1727410646960,3.1945,156.5,156.49,9.83]
[1727410647156,6.3839,156.62,156.49,9.83]
[1727410647357,9.83,156.57,156.52,9.83]
[1727410647557,0.9789855,156.56,156.52,9.83]
[1727410648762,3.1934,156.55,156.52,9.83]
[1727410650465,3.1936,156.54,156.52,9.83]
[1727410651358,3.1936,156.54,156.46,3.12756965]
[1727410651559,3.1936,156.54,156.51,9.83]
[1727410651962,2.7391,156.59,156.53,9.83]
[1727410652167,0.9788036,156.58,156.55,9.83]
[1727410652964,1.3752,156.59,156.55,9.83]
[1727410653164,4.17166035,156.58,156.55,9.83]
[1727410653361,3.1929,156.58,156.55,9.83]
[1727410655567,9.83,156.62,156.57,9.83]
[1727410655762,0.9787325,156.61,156.58,9.83]
[1727410655962,0.9787325,156.6,156.58,9.83]
[1727410656174,3.1923,156.61,156.58,9.83]
[1727410656371,0.9786634,156.6,156.58,9.83]
[1727410657471,0.9786634,156.6,156.59,9.83]
[1727410657769,6.3801,156.72,156.59,9.83]
[1727410657770,13.05463598,156.66,156.59,9.83]
[1727410657968,3.1921,156.62,156.58,9.83]
[1727410658172,9.83,156.63,156.58,9.83]
[1727410658368,5.8267346,156.7,156.57,9.83]
[1727410658369,10.80853422,156.62,156.57,9.83]
[1727410658570,3.1923,156.6,156.57,9.83]
[1727410659364,3.1926,156.59,156.56,3.1931]
[1727410659574,3.1926,156.59,156.57,9.83]
[1727410659965,9.83,156.62,156.57,9.83]
[1727410660167,9.83,156.6,156.55,13.0233]
[1727410660373,9.83,156.6,156.53,1.3164]
[1727410660374,0.97859134,156.59,156.54,3.1934]
[1727410660565,0.97859134,156.59,156.54,13.0234]
[1727410660766,3.1931,156.57,156.54,13.0234]
[1727410661072,9.83,156.59,156.54,9.83]
[1727410661273,3.1933,156.56,156.54,9.83]
[1727410661975,9.83,156.55,156.5,85.94355108]
[1727410662272,9.83,156.54,156.5,85.94355108]
[1727410662474,9.83,156.54,156.47,1.3578]
[1727410662674,9.83,156.54,156.48,9.83]
[1727410662974,3.1943,156.51,156.48,9.83]
[1727410663869,3.1943,156.51,156.48,13.0246]
[1727410664274,3.194,156.52,156.5,9.83]
[1727410665774,3.1942,156.51,156.5,9.83]
[1727410667477,3.8406,156.61,156.5,9.83]
[1727410667674,3.8406,156.61,156.45,1.2591]
[1727410667675,9.83,156.57,156.52,9.83]
[1727410667881,0.97897026,156.56,156.52,9.83]
[1727410668176,3.1935,156.55,156.52,13.0239]
[1727410669682,3.1935,156.54,156.52,13.0239]
[1727410670679,9.83,156.58,156.53,9.83]
[1727410671174,3.1935,156.55,156.53,9.83]
[1727410672274,3.8406,156.61,156.54,9.83]
[1727410672482,10.80888666,156.6,156.54,9.83]
[1727410672683,3.193,156.57,156.54,9.83]
[1727410675982,3.193,156.57,156.54,13.0235]
[1727410676179,3.193,156.57,156.54,9.83]
[1727410676909,3.1932,156.56,156.54,9.83]
[1727410677480,3.1932,156.56,156.52,3.1939]
[1727410677685,3.1932,156.56,156.54,9.83]
[1727410679894,3.193,156.57,156.54,9.83]
[1727410681194,3.1932,156.56,156.54,9.83]
[1727410685294,3.1932,156.56,156.55,13.512]
[1727410685693,9.83,156.6,156.55,13.512]
[1727410686194,3.1928,156.58,156.55,23.342]
[1727410686594,9.83,156.6,156.55,23.342]
[1727410687896,3.193,156.57,156.55,23.342]
[1727410688292,3.8406,156.61,156.56,13.0231]
[1727410688494,3.8406,156.61,156.56,9.83]
[1727410688495,3.1926,156.59,156.56,9.83]
[1727410688790,13.6706,156.61,156.56,9.83]
[1727410688998,3.1926,156.59,156.56,9.83]
[1727410689197,3.1926,156.59,156.58,13.512]
[1727410692298,4.17139436,156.59,156.58,13.512]
[1727410693898,4.17139182,156.59,156.58,13.512]
[1727410694493,4.17139292,156.59,156.58,13.512]
[1727410696899,4.17138348,156.59,156.58,13.512]
[1727410697206,14.00138348,156.59,156.58,6.41211625]
[1727410697397,14.00138348,156.59,156.58,0.15021625]
[1727410697602,14.00138348,156.59,156.52,9.83]
[1727410697603,3.1936,156.54,156.52,9.83]
[1727410698402,3.1934,156.55,156.52,9.83]
[1727410698597,1.3276,156.61,156.54,9.83]
[1727410698801,0.9788056,156.6,156.57,9.83]
[1727410699100,0.9788056,156.59,156.57,9.83]
[1727410699298,0.9788056,156.58,156.57,9.83]
[1727410699506,9.83,156.61,156.57,9.83]
[1727410699702,0.9788056,156.6,156.57,9.83]
[1727410700103,0.9788056,156.59,156.57,9.83]
[1727410700304,0.9788056,156.58,156.57,9.83]
[1727410700507,0.9788056,156.61,156.57,9.83]
[1727410700698,9.83,156.62,156.57,9.83]
[1727410700699,0.9788056,156.6,156.57,9.83]
[1727410701001,3.2527346,156.7,156.59,9.83]
[1727410701198,25.5495,156.73,156.59,9.83]
[1727410701199,3.1921,156.62,156.59,9.83]
[1727410701398,0.9787814,156.61,156.59,9.83]
[1727410701706,3.1921,156.62,156.59,9.83]
[1727410701707,0.97877156,156.6,156.59,9.83]
[1727410701906,0.97877156,156.61,156.59,9.83]
[1727410702108,0.97877156,156.6,156.59,9.83]
[1727410702399,0.97877156,156.61,156.59,9.83]
[1727410702606,0.97877156,156.6,156.59,9.83]
[1727410702797,0.97877156,156.61,156.59,9.83]
[1727410702996,3.1921,156.62,156.59,9.83]
[1727410703197,0.97877344,156.61,156.59,9.83]
[1727410703408,0.97877332,156.6,156.59,9.83]
[1727410703599,0.97877332,156.61,156.59,9.83]
[1727410703803,0.97877332,156.6,156.59,9.83]
[1727410704106,4.17087332,156.61,156.59,9.83]
[1727410704308,0.97877329,156.6,156.59,9.83]
[1727410704621,0.97877329,156.6,156.58,9.83]
[1727410704804,3.1921,156.61,156.58,9.83]
[1727410705110,0.97877331,156.6,156.58,9.83]
[1727410705403,4.17107331,156.6,156.58,9.83]
[1727410705599,0.97877335,156.59,156.58,9.83]
[1727410706105,4.17127335,156.59,156.58,9.83]
[1727410706704,4.17127328,156.59,156.58,9.83]
[1727410707409,4.17127337,156.59,156.58,9.83]
[1727410707902,3.1925,156.59,156.58,9.83]
[1727410708123,4.17127226,156.59,156.58,9.83]
[1727410709806,3.1928,156.58,156.55,4.5039]
[1727410710000,3.1928,156.58,156.57,9.83]
[1727410711104,9.83,156.61,156.55,1.3106]
[1727410711305,9.83,156.59,156.52,76.10470104]
[1727410711510,0.97877538,156.58,156.53,9.83]
[1727410711705,9.83,156.59,156.53,9.83]
[1727410711910,3.1935,156.54,156.53,9.83]
[1727410713603,3.1937,156.53,156.52,76.10470104]
[1727410714512,3.1936,156.54,156.52,85.93470104]
[1727410714916,1.3534,156.63,156.53,9.83]
[1727410715116,3.1933,156.56,156.55,9.83]
[1727410716223,3.193,156.57,156.55,9.83]
[1727410716816,3.1931,156.56,156.52,79.29860104]
[1727410717016,3.1931,156.56,156.55,9.83]
[1727410717626,1.3534,156.63,156.51,4.5048]
[1727410717627,3.1936,156.54,156.51,4.5048]
[1727410717921,9.83,156.58,156.53,9.83]
[1727410718122,9.83,156.59,156.55,9.83]
[1727410718319,0.97880226,156.58,156.55,9.83]
[1727410718518,10.80880226,156.58,156.54,9.83]
[1727410718819,3.1935,156.55,156.54,9.83]
[1727410719218,3.1935,156.55,156.51,1.3107]
[1727410719219,3.1937,156.54,156.52,9.83]
[1727410719415,9.83,156.55,156.47,2.6862]
[1727410719615,9.83,156.52,156.48,9.83]
[1727410719822,3.1946,156.49,156.48,9.83]
[1727410720627,9.83,156.51,156.45,1.334]
[1727410720817,9.83,156.51,156.41,1.2713]
[1727410720818,9.83,156.5,156.42,1.3442]
[1727410721022,9.83,156.49,156.44,9.83]
[1727410721215,3.1954,156.45,156.44,9.83]
[1727410722721,3.1954,156.45,156.42,4.5401]
[1727410722925,3.1957,156.44,156.43,9.83]
[1727410723220,3.1957,156.44,156.41,2.6053]
[1727410723221,9.83,156.46,156.41,9.83]
[1727410724026,9.83,156.45,156.4,9.83]
[1727410724225,9.83,156.44,156.36,2.7074]
[1727410724427,9.83,156.45,156.41,9.83]
[1727410725025,12.95046004,156.46,156.41,9.83]
[1727410725225,9.83,156.46,156.36,2.7074]
[1727410725437,3.1958,156.44,156.42,9.83]
[1727410726126,3.1958,156.43,156.42,9.83]
[1727410726528,9.83,156.47,156.42,9.83]
[1727410727033,6.3875,156.53,156.42,9.83]
[1727410727232,9.83,156.47,156.42,9.83]
[1727410729527,3.1958,156.43,156.42,9.83]
[1727410732441,3.1956,156.44,156.42,16.73621625]
[1727410733241,3.1958,156.43,156.42,6.90621625]
[1727410734233,6.3875,156.53,156.42,16.73621625]
[1727410734234,3.1956,156.44,156.42,16.73621625]
[1727410734438,9.83,156.47,156.42,16.73621625]
[1727410734638,9.83,156.47,156.43,9.83]
[1727410734843,9.83,156.48,156.43,9.83]
[1727410735544,3.1954,156.46,156.43,9.83]
[1727410735741,3.1954,156.46,156.45,9.83]
[1727410735940,4.41953723,156.54,156.45,9.83]
[1727410735941,9.83,156.51,156.45,9.83]
[1727410736147,9.83,156.51,156.47,9.83]
[1727410736148,3.1948,156.48,156.47,9.83]
[1727410736341,9.83,156.51,156.48,3.71141625]
[1727410736543,9.83,156.5,156.48,3.71141625]
[1727410736945,3.1946,156.49,156.48,3.71141625]
[1727410737947,4.17446882,156.49,156.48,3.71141625]
[1727410738547,14.00446882,156.49,156.48,3.71141625]
[1727410738944,13.0246,156.49,156.48,3.71141625]
[1727410740950,13.0246,156.49,156.48,1.1194359]
[1727410741345,16.28077968,156.49,156.48,1.1194359]
[1727410741652,13.0246,156.49,156.48,1.1194359]
[1727410741853,3.1946,156.49,156.48,1.1194359]
[1727410742849,3.1944,156.5,156.48,1.1194359]
[1727410743056,3.1944,156.5,156.48,10.9494359]
[1727410743552,3.1946,156.49,156.48,1.1194359]
[1727410745053,13.0246,156.49,156.48,1.1194359]
[1727410749061,3.1946,156.49,156.48,1.1194359]
[1727410749455,3.1944,156.5,156.48,10.9494359]
[1727410749661,9.83,156.52,156.48,10.9494359]
[1727410750262,3.1943,156.51,156.48,10.9494359]
[1727410750457,9.83,156.52,156.48,10.9494359]
[1727410751057,3.1945,156.5,156.48,9.83]
[1727410751260,2.0750641,156.5,156.48,9.83]
[1727410751663,3.1946,156.49,156.48,9.83]
[1727410752963,3.1946,156.49,156.47,9.83]
[1727410753665,3.1948,156.48,156.47,9.83]
[1727410754160,9.83,156.49,156.42,2.6732]
[1727410754366,3.1951,156.47,156.45,9.83]
[1727410754961,3.1951,156.47,156.46,9.83]
[1727410755464,3.1957,156.44,156.43,9.83]
[1727410755866,3.1955,156.45,156.43,9.83]
[1727410756066,3.1955,156.45,156.44,9.83]
[1727410759991,3.1955,156.45,156.37,13.97050188]
[1727410759992,12.99144852,156.46,156.37,8.28092956]
[1727410760259,6.3877,156.53,156.41,9.83]
[1727410760260,9.83,156.45,156.41,9.83]
[1727410760462,3.1961,156.42,156.41,9.83]
[1727410760872,3.1965,156.4,156.38,9.83]
[1727410761668,3.1966,156.39,156.38,9.83]
[1727410761869,9.83,156.43,156.38,9.83]
[1727410762173,3.196,156.42,156.41,9.83]
[1727410764173,3.1966,156.4,156.39,9.83]
[1727410765467,3.1963,156.41,156.39,9.83]
[1727410765673,3.1963,156.41,156.4,9.83]
[1727410767177,3.12664605,156.45,156.39,9.83]
[1727410767477,9.83,156.43,156.39,9.83]
[1727410767677,3.1964,156.41,156.39,9.83]
[1727410768175,9.83,156.43,156.39,9.83]
[1727410768877,3.1964,156.41,156.39,9.83]
[1727410769977,3.1964,156.4,156.39,9.83]
[1727410771479,3.1963,156.41,156.39,9.83]
[1727410771780,3.1963,156.41,156.38,3.1968]
[1727410771978,3.1963,156.41,156.4,9.83]
[1727410772379,3.1964,156.4,156.37,4.5729]
[1727410772680,3.1964,156.4,156.39,9.83]
[1727410773784,3.1405204,156.45,156.39,9.83]
[1727410773785,9.83,156.45,156.39,9.83]
[1727410773984,9.83,156.45,156.41,9.83]
[1727410774383,3.1962,156.41,156.4,9.83]
[1727410774584,9.83,156.45,156.4,9.83]
[1727410774884,3.1958,156.43,156.41,9.83]
[1727410775885,3.196,156.42,156.4,9.83]
[1727410776088,9.83,156.43,156.4,9.83]
[1727410776886,3.17589171,156.46,156.4,9.83]
[1727410776887,3.1961,156.42,156.4,9.83]
[1727410778187,9.83,156.43,156.39,9.83]
[1727410778789,3.1962,156.41,156.4,9.83]
[1727410779888,3.1961,156.42,156.4,9.83]
[1727410783993,3.1962,156.41,156.4,9.83]
[1727410784192,3.1962,156.41,156.37,4.5728]
[1727410784395,3.1962,156.41,156.39,9.83]
[1727410785801,3.1962,156.41,156.37,4.5728]
[1727410785999,3.1962,156.41,156.38,9.83]
[1727410786501,3.1962,156.41,156.37,4.5728]
[1727410786692,3.1964,156.4,156.38,9.83]
[1727410789401,9.83,156.4,156.34,1.3145]
[1727410789603,9.83,156.4,156.36,9.83]
[1727410790106,3.1969,156.38,156.36,9.83]
[1727410790703,3.1969,156.38,156.37,9.83]
[1727410793103,3.1974,156.35,156.33,1.3025]
[1727410793302,9.83,156.36,156.33,1.3025]
[1727410793499,9.83,156.35,156.32,11.106]
[1727410793708,3.1976,156.34,156.32,14.304]
[1727410793907,9.83,156.35,156.32,14.304]
[1727410794205,9.83,156.37,156.34,9.83]
[1727410794403,9.83,156.37,156.29,1.3804]
[1727410794707,9.83,156.36,156.32,9.83]
[1727410794902,3.1975,156.35,156.32,9.83]
[1727410795208,9.83,156.36,156.32,9.83]
[1727410795808,3.1975,156.35,156.32,9.83]
[1727410797105,9.83,156.36,156.32,9.83]
[1727410797297,9.83,156.39,156.34,9.83]
[1727410797501,9.83,156.38,156.34,9.83]
[1727410797699,5.89337255,156.42,156.32,13.028]
[1727410797700,3.1974,156.35,156.32,13.028]
[1727410798304,9.83,156.37,156.32,9.83]
[1727410798709,9.83,156.37,156.29,2.7446]
[1727410799009,3.1975,156.35,156.32,13.028]
[1727410799306,9.83,156.37,156.32,9.83]
[1727410799507,9.83,156.35,156.32,9.83]
[1727410800908,3.1977,156.34,156.32,9.83]
[1727410801310,3.1977,156.34,156.32,9.82]
[1727410801509,3.1978,156.33,156.32,9.82]
[1727410801812,9.82,156.33,156.28,1.2615]
[1727410802007,9.82,156.31,156.28,11.0815]
[1727410802310,9.82,156.32,156.29,9.82]
[1727410802804,9.82,156.34,156.3,9.82]
[1727410803003,6.88627255,156.42,156.33,9.82]
[1727410803211,3.1969,156.38,156.35,13.0174]
[1727410803412,9.82,156.4,156.36,9.82]
[1727410803811,3.1968,156.39,156.36,9.82]
[1727410804015,9.82,156.4,156.36,9.82]
[1727410804212,9.82,156.39,156.35,9.82]
[1727410804414,9.82,156.38,156.31,1.3444]
[1727410804613,9.82,156.37,156.33,9.82]
[1727410805006,9.82,156.38,156.34,9.82]
[1727410805211,9.82,156.36,156.32,9.82]
[1727410805613,3.1975,156.35,156.32,9.82]
[1727410806613,3.1975,156.35,156.32,13.018]
[1727410808918,3.1975,156.35,156.33,9.82]
[1727410809119,3.1972,156.37,156.34,13.0176]
[1727410812123,3.1973,156.36,156.33,3.1978]
[1727410812423,3.1973,156.36,156.33,13.0178]
[1727410812926,3.1973,156.36,156.34,3.1976]
[1727410813224,13.0171,156.37,156.34,3.1976]
[1727410814418,9.82,156.36,156.32,9.82]
[1727410815112,3.1977,156.34,156.32,9.82]
[1727410817124,9.82,156.37,156.33,9.82]
[1727410818124,3.1973,156.36,156.33,13.0177]
[1727410822528,13.0171,156.37,156.34,9.82]
[1727410823235,9.82,156.37,156.34,9.82]
[1727410823631,9.82,156.37,156.33,13.0177]
[1727410825033,3.1973,156.36,156.33,13.0177]
[1727410826338,13.0173,156.36,156.33,13.0177]
[1727410827832,3.1974,156.35,156.33,9.82]
[1727410828539,3.1974,156.35,156.32,13.0179]
[1727410828735,3.1976,156.34,156.32,13.0179]
[1727410828937,3.1976,156.34,156.32,9.82]
[1727410830637,3.1976,156.34,156.32,13.018]
[1727410833141,9.82,156.36,156.32,9.82]
[1727410833845,3.1978,156.34,156.32,9.82]
[1727410834641,3.1978,156.33,156.32,9.82]
[1727410836441,3.198,156.32,156.31,11.1644]
[1727410836743,3.198,156.32,156.29,4.5847]
[1727410836744,13.03857806,156.34,156.3,9.82]
[1727410837044,9.82,156.33,156.29,13.0185]
[1727410837539,3.27871448,156.32,156.28,11.0815]
[1727410837743,9.82,156.33,156.28,11.0815]
[1727410837940,3.1986,156.3,156.28,11.0815]
[1727410838141,3.1986,156.3,156.28,14.2804]
[1727410838342,3.1986,156.3,156.28,11.0815]
[1727410842752,3.1987,156.29,156.27,1.2644]
[1727410842948,3.1987,156.29,156.27,11.0844]
[1727410843752,3.1987,156.29,156.27,14.2834]
[1727410844148,3.1987,156.29,156.27,11.0844]
[1727410844353,3.1987,156.29,156.27,9.82]
[1727410845248,3.1992,156.27,156.24,4.5231]
[1727410845454,3.1992,156.27,156.24,14.3431]
[1727410845850,3.1989,156.28,156.25,13.0194]
[1727410846080,3.5841,156.36,156.27,9.82]
[1727410846251,9.82,156.32,156.29,9.82]
[1727410846657,3.1984,156.3,156.29,9.82]
[1727410847054,3.1984,156.3,156.28,9.82]
[1727410847254,3.1987,156.29,156.28,9.82]
[1727410851262,3.1985,156.3,156.28,9.82]
[1727410851659,9.82,156.31,156.24,1.3235]
[1727410851957,9.82,156.29,156.26,9.82]
[1727410852662,3.1989,156.28,156.26,9.82]
[1727410853065,3.1991,156.27,156.24,4.523]
[1727410853264,9.82,156.27,156.24,1.3235]
[1727410853465,9.82,156.27,156.23,9.82]
[1727410853660,3.1998,156.24,156.22,9.82]
[1727410854359,9.82,156.26,156.22,9.82]
[1727410854360,3.1999,156.23,156.22,9.82]
[1727410855158,3.1999,156.23,156.21,11.1144]
[1727410855359,3.2001,156.22,156.21,1.2944]
[1727410855567,3.2001,156.22,156.2,9.82]
[1727410857764,3.2001,156.22,156.19,5.8242]
[1727410857966,3.2003,156.21,156.19,12.4435]
[1727410858167,3.2003,156.21,156.19,11.1194]
[1727410858660,3.2003,156.21,156.18,3.2008]
[1727410858857,3.2003,156.21,156.18,13.0208]
[1727410859865,9.82,156.23,156.19,9.82]
[1727410860069,3.16826307,156.24,156.2,9.82]
[1727410860070,9.82,156.24,156.2,9.82]
[1727410861166,3.2002,156.22,156.2,9.82]
[1727410861967,3.2002,156.22,156.19,3.2005]
[1727410862173,3.2003,156.21,156.19,9.82]
[1727410864266,9.82,156.23,156.18,13.0208]
[1727410864968,3.2004,156.21,156.18,13.0208]
[1727410867275,3.2002,156.22,156.2,9.82]
[1727410867474,1.3779,156.3,156.21,9.82]
[1727410867777,9.82,156.28,156.24,9.82]
[1727410868074,9.82,156.28,156.24,13.0196]
[1727410868373,9.82,156.28,156.23,9.82]
[1727410868571,3.1993,156.26,156.23,9.82]
[1727410869371,13.0195,156.25,156.22,3.2]
[1727410869673,9.82,156.26,156.22,13.02]
[1727410870070,13.0194,156.26,156.22,13.02]
[1727410870270,9.82,156.26,156.22,3.2]
[1727410870469,9.82,156.26,156.22,13.02]
[1727410871875,3.1995,156.25,156.22,13.02]
[1727410872777,3.1999,156.23,156.17,1.2815]
[1727410872973,1.3779,156.3,156.2,9.82]
[1727410873172,9.82,156.25,156.21,9.82]
[1727410873876,3.1997,156.24,156.21,9.82]
[1727410874269,3.1997,156.24,156.21,13.0203]
[1727410875577,3.2,156.23,156.21,9.82]
[1727410875775,3.2,156.23,156.2,9.82]
[1727410876276,9.82,156.21,156.17,1.2815]
[1727410876474,9.82,156.19,156.15,2.6272]
[1727410876678,3.201,156.18,156.15,15.6486]
[1727410877179,9.82,156.18,156.15,1.336]
[1727410877380,3.2013,156.17,156.15,11.156]
[1727410877975,13.0213,156.17,156.14,3.2016]
[1727410878180,3.2013,156.17,156.14,13.0216]
[1727410879784,3.2013,156.17,156.15,9.82]
[1727410881382,3.2013,156.16,156.14,9.82]
[1727410882382,9.82,156.15,156.11,1.3182]
[1727410882583,9.82,156.15,156.11,11.1382]
[1727410882786,3.2018,156.14,156.11,14.3405]
[1727410883084,9.82,156.17,156.13,9.82]
[1727410883485,3.2014,156.16,156.13,13.0219]
[1727410883879,9.82,156.16,156.11,1.3182]
[1727410884090,9.82,156.16,156.12,9.82]
[1727410884789,9.82,156.15,156.11,4.5205]
[1727410884988,9.82,156.14,156.11,1.3182]
[1727410885689,13.0219,156.14,156.11,1.3182]
[1727410886091,3.2019,156.14,156.11,14.3405]
[1727410887797,9.82,156.15,156.11,11.1382]
[1727410887987,9.82,156.15,156.11,1.3182]
[1727410888192,3.2019,156.14,156.1,3.2024]
[1727410888384,3.2019,156.14,156.1,13.0224]
[1727410888594,3.2019,156.14,156.11,9.82]
[1727410889888,3.2019,156.14,156.11,13.0223]
[1727410890297,3.6778,156.24,156.14,3.2017]
[1727410890597,9.82,156.17,156.14,3.2017]
[1727410890794,13.0212,156.17,156.14,3.2017]
[1727410891193,13.0212,156.17,156.13,9.82]
[1727410891391,9.82,156.19,156.15,9.82]
[1727410891891,13.0208,156.19,156.15,13.0213]
[1727410892999,3.2009,156.18,156.15,13.0213]
[1727410893500,13.0209,156.18,156.15,3.2013]
[1727410893701,13.0209,156.18,156.14,13.0216]
[1727410895599,13.0209,156.18,156.15,3.2015]
[1727410897802,13.0209,156.18,156.15,13.0215]
[1727410903505,3.6778,156.24,156.16,3.2012]
[1727410903706,9.82,156.2,156.16,13.0212]
[1727410904309,13.0206,156.2,156.16,13.0212]
[1727410904803,3.2002,156.22,156.19,3.2006]
[1727410905007,3.2002,156.22,156.17,9.82]
[1727410905008,9.82,156.25,156.21,9.82]
[1727410905204,9.82,156.25,156.11,12.67873422]
[1727410905407,3.1997,156.24,156.21,9.82]
[1727410906103,3.1997,156.24,156.22,9.82]